[Event "1000GM Schev-G3 March 2024"]
[Site "Santa Clara"]
[Date "2024.03.10"]
[Round "3.3"]
[White "Gracia Alvarez, Gerardo Antonio"]
[Black "Champsi, Imran"]
[Result "1-0"]
[ECO "D30"]
[WhiteElo "2233"]
[BlackElo "2057"]
[Annotator "TA"]
[PlyCount "107"]
[EventDate "2024.03.06"]
[EventType "schev"]
[EventCountry "USA"]
[SourceTitle "playchess.com"]
[Source "ChessBase"]
[SourceQuality "1"]
[TimeControl "5400+30"]

{[%evp 11,107,23,17,16,19,18,15,0,0,0,8,0,0,0,0,0,22,25,14,26,45,-14,-22,-30,-27,-33,25,22,20,11,32,7,2,0,18,8,8,10,16,0,0,0,1,0,6,0,7,8,9,6,16,12,18,14,45,24,26,32,45,28,35,27,114,113,113,120,155,136,292,8,8,8,1036,1027,979,839,769,560,1037,612,12715,6381,5069,4396,29991,29992,29993,29994,29994,29995,29995,29996,29996,29997,29997,29998,29998,29999]} 1. d4 {[%emt 0:00:03]} d5 {[%emt 0:00:26]} 2. c4 {[%emt 0:00:15]} c6 {[%emt 0:00:01]} 3. Nf3 {[%emt 0:00:10]} Nf6 {[%emt 0:00:05]} 4. e3 {[%emt 0:00:05]} e6 {[%emt 0:04:59]} 5. Nbd2 {[%emt 0:00:14]} Nbd7 {[%emt 0:01:10]} 6. Bd3 {[%emt 0:01:30]} Be7 {[%emt 0:06:13]} 7. b3 {[%emt 0:00:13]} O-O {[%emt 0:01:33]} 8. Bb2 {[%emt 0:00:58]} b6 {[%emt 0:05:01]} 9. e4 {[%emt 0:02:04] The position is equal.} dxe4 {[%emt 0:07:27]} 10. Nxe4 {[%emt 0:00:05]} Bb7 {[%emt 0:00:48]} 11. Qe2 {[%emt 0:09:19]} c5 {[%emt 0:07:16]} 12. O-O-O {[%emt 0:10:42]} cxd4 {[%emt 0:16:13]} 13. Nxd4 {[%emt 0:00:19]} Nxe4 {[%emt 0:05:20]} 14. Bxe4 {[%emt 0:00:05]} Bxe4 {[%emt 0:01:16]} 15. Qxe4 {[%emt 0:00:09]} Bf6 {[%emt 0:02:20]} 16. Nf3 {[%emt 0:06:18]} (16. h4 $14) 16... Qc7 $11 {[%emt 0:06:48]} 17. Bxf6 {[%emt 0:01:09]} Nxf6 {[%emt 0:01:17]} 18. Qe5 {[%emt 0:01:07]} Rac8 {[%emt 0:05:36]} (18... Qb7 $15) 19. Qxc7 {[%emt 0:05:56]} Rxc7 {[%emt 0:00:02]} 20. Kb2 {[%emt 0:00:32]} Rfc8 {[%emt 0:01:15][%cal Ob6b5]} 21. Rd2 {[%emt 0:01:10]} Kf8 {[%emt 0:02:42]} 22. Rhd1 {[%emt 0:00:20]} Ke7 {[%emt 0:02:16]} 23. Ne5 {[%emt 0:00:47]} Ne4 {[%emt 0:06:41]} 24. Rd7+ {[%emt 0:08:00]} Ke8 {[%emt 0:01:50]} 25. Rxc7 {[%emt 0:02:22]} Rxc7 {[%emt 0:00:02][%mdl 4096] Endgame. KRN-KRN} 26. f3 {[%emt 0:00:17]} Nc5 {[%emt 0:03:21]} 27. Kc3 {[%emt 0:02:30]} f6 {[%emt 0:01:58]} 28. Ng4 {[%emt 0:00:18]} Rd7 {[%emt 0:01:25]} 29. Rxd7 {[%emt 0:00:05]} Kxd7 {[%emt 0:00:10] KN-KN} 30. b4 {[%emt 0:00:18]} Na6 {[%emt 0:02:42]} 31. f4 {[%emt 0:01:27]} Nc7 {[%emt 0:01:09]} 32. Ne3 {[%emt 0:01:51]} a6 {[%emt 0:02:13]} 33. Kd4 {[%emt 0:00:25]} Kc6 {[%emt 0:02:28]} 34. g4 {[%emt 0:01:40]} Ne8 {[%emt 0:01:17]} 35. a4 {[%emt 0:02:03]} Nd6 {[%emt 0:01:30]} 36. h4 {[%emt 0:02:00]} Nf7 {[%emt 0:00:53]} (36... h6 $11 {remains equal.}) 37. b5+ $16 {[%emt 0:02:33]} axb5 {[%emt 0:00:03]} 38. cxb5+ {[%emt 0:01:09]} Kc7 {[%emt 0:00:14]} 39. f5 $1 {[%emt 0:01:29]} exf5 {[%emt 0:01:02]} (39... Nd8 $16 40. Kc4 Kc8 41. fxe6 Nxe6) 40. gxf5 $2 {[%emt 0:00:15]} ({White must play} 40. Nxf5 $18 Ne5 41. Nxg7 Nxg4 42. Kd5) 40... Nd6 $1 $11 {[%emt 0:00:47]} 41. h5 {[%emt 0:00:55]} Nc8 $2 {[%emt 0:00:31][%mdl 8192] [#]} (41... Kc8 $11) 42. h6 $1 $18 {[%emt 0:08:58][%mdl 512]} gxh6 {[%emt 0:00:10]} 43. Nd5+ {[%emt 0:00:03]} Kd8 {[%emt 0:00:19]} 44. Nxf6 {[%emt 0:00:08][%cal Of6d5] Black must now prevent Nd5!} Nd6 {[%emt 0:00:05]} 45. Ke5 {[%emt 0:00:20]} (45. Nxh7 Nxf5+ 46. Ke4 Nd6+ 47. Kd5 Kc7 $11) 45... Nc4+ {[%emt 0:00:06]} 46. Ke6 {[%emt 0:00:08]} Nb2 {[%emt 0:00:18]} 47. Ne4 {[%emt 0:06:03][%cal Oa4a5] Hoping for a5!} ({Stronger than} 47. Nxh7 Nxa4 48. f6 Nc5+ 49. Kf7 h5 $11) 47... Nxa4 {[%emt 0:00:59]} 48. f6 {[%emt 0:00:06][%cal Bf5f6,Bf6f7][%mdl 32] White mates.} Ke8 {[%emt 0:00:03] [#]} 49. f7+ $1 {[%emt 0:00:06]} Kf8 {[%emt 0:00:01]} 50. Kf6 {[%emt 0:00:11]} Nb2 {[%emt 0:00:38] [#]} 51. Nc5 $1 {[%emt 0:00:47][%mdl 512]} bxc5 {[%emt 0:00:12]} 52. b6 {[%emt 0:00:04]} Nc4 {[%emt 0:00:19]} 53. b7 {[%emt 0:00:04][%cal Rb7b8]} Nb6 {[%emt 0:00:02]} 54. b8=Q+ {[%emt 0:24:02] Weighted Error Value: White=0.26 (precise) /Black=0.30.  Loses game:     	---       	Black=1      Missed win:     	White=1     	---        Mistake:       	White=1     	Black=3      Inaccurate:     	---       	Black=2      OK:         	White=11    	Black=12     Best:        	White=2     	Black=1      Strong:       	White=1     	Black=1      Brilliant:      	White=1     	---} 1-0

[Event "1000GM Schev-G3 March 2024"]
[Site "Santa Clara"]
[Date "2024.03.10"]
[Round "3.4"]
[White "Heimann, Alexander"]
[Black "Liu, Patrick"]
[Result "1/2-1/2"]
[ECO "B48"]
[WhiteElo "2290"]
[BlackElo "2068"]
[Annotator "TA"]
[PlyCount "105"]
[EventDate "2024.03.06"]
[EventType "schev"]
[EventCountry "USA"]
[SourceTitle "playchess.com"]
[Source "ChessBase"]
[SourceQuality "1"]
[TimeControl "5400+30"]

{[%evp 14,105,20,0,33,27,37,10,16,0,34,0,-2,-14,0,-18,-26,-55,-24,-47,0,-106,-88,-107,-38,-23,-29,-108,-40,-76,36,25,25,26,305,294,287,0,0,0,0,0,0,0,0,0,0,0,0,0,0,0,0,0,0,0,0,0,0,-135,0,0,0,0,0,0,0,0,0,0,0,0,0,0,0,0,0,0,0,0,0,0,0,0,0,0,0,0,0,0,0,0,0,0]} 1. e4 {[%emt 0:00:30]} c5 {[%emt 0:00:30]} 2. Nf3 {[%emt 1:31:00]} e6 {[%emt 0:00:00]} 3. d4 {[%emt 0:00:00]} cxd4 {[%emt 0:00:00]} 4. Nxd4 {[%emt 0:00:00]} Nc6 {[%emt 0:00:00]} 5. Nc3 {[%emt 0:00:00]} Qc7 {[%emt 0:00:00]} 6. Be3 {[%emt 0:00:00]} a6 {[%emt 0:00:00]} 7. Qd2 {[%emt 0:00:00]} Nf6 {[%emt 0:01:33]} 8. f3 {[%emt 0:00:00]} Be7 {[%emt 0:00:30]} 9. O-O-O {[%emt 0:00:00]} b5 {[%emt 0:00:47]} 10. Nxc6 {[%emt 0:00:00]} dxc6 {[%emt 0:06:59]} 11. Qf2 {[%emt 0:00:00]} e5 {[%emt 0:02:18]} 12. Bb6 {[%emt 0:00:00]} Qb7 {[%emt 0:01:49]} 13. Bc5 {[%emt 0:00:00]} O-O {[%emt 0:01:37]} 14. Be2 {[%emt 0:00:00]} Be6 {[%emt 0:01:02]} 15. Rd2 {[%emt 0:00:00]} a5 {[%emt 0:02:47]} 16. Rhd1 {[%emt 0:00:00]} a4 {[%emt 0:00:32]} (16... Bxc5 $15 17. Qxc5 Nd7) 17. b3 {[%emt 0:00:00]} (17. a3 $1 $11) 17... axb3 $17 {[%emt 0:01:43]} 18. cxb3 {[%emt 0:00:00]} Bxc5 {[%emt 0:03:29]} (18... Rfc8 $17 {[%cal Of6d5]} 19. Kb1 Bd8) 19. Qxc5 $15 {[%emt 0:00:00]} Nd7 {[%emt 0:00:12]} 20. Qd6 {[%emt 0:00:00]} (20. Qe3 $11 {remains equal.}) 20... Rfc8 {[%emt 0:02:52]} (20... Qa7 $1 $17 21. Qe7 Rfe8) 21. g3 {[%emt 0:00:00]} b4 {[%emt 0:07:15]} (21... Qb6 $17) 22. Na4 $14 {[%emt 0:00:00]} c5 {[%emt 0:00:47] White must now prevent ...c4.} 23. Kb1 {[%emt 0:00:00][%cal Oa4c5]} Rxa4 {[%emt 0:06:59][%mdl 8192]} 24. bxa4 $18 {[%emt 0:00:00]} c4 {[%emt 0:00:12] [#]} 25. Bxc4 {[%emt 0:00:00]} Rxc4 $11 {[%emt 0:00:10]} 26. Qxd7 $1 {[%emt 0:00:00]} Bxd7 {[%emt 0:01:24]} 27. Rxd7 {[%emt 0:00:00][%cal Rd7d8]} Rc1+ $1 {[%emt 0:00:39]} 28. Kxc1 {[%emt 0:00:00][%cal Rd7d8][%mdl 4096] Endgame. KQ-KRR} (28. Kb2 $5 Rc2+ $8 29. Kb3 (29. Kxc2 Qc6+ 30. Kb1 g6 $11) 29... Rc3+ 30. Kb2 Rc2+ 31. Kb3 (31. Kxc2 Qc6+ 32. Kb1 h5 $11) 31... Rc3+ 32. Kb2 Rc2+ $11) 28... Qc6+ {[%emt 0:00:12]} 29. Kb1 {[%emt 0:00:00] White threatens Rd8+ and mate.} g6 {[%emt 0:00:44]} 30. a5 {[%emt 0:00:00]} Qa4 {[%emt 0:01:15]} 31. R7d5 {[%emt 0:00:00][%cal Od1d3] Strongly threatening R1d3!} b3 $1 {[%emt 0:00:40]} 32. R1d2 {[%emt 0:00:00]} (32. Rxe5 $2 {gets mated.} Qxa2+ 33. Kc1 Qc2#) 32... bxa2+ {[%emt 0:01:24]} 33. Rxa2 {[%emt 0:00:00]} Qb3+ {[%emt 0:00:09]} 34. Rb2 {[%emt 0:00:00]} Qxf3 {[%emt 0:00:10]} 35. Rb4 {[%emt 0:00:00][%cal Ob1b2]} Qe2 {[%emt 0:01:23]} 36. Rd8+ {[%emt 0:00:00]} Kg7 {[%emt 0:00:05][%mdl 1024] Black has strong compensation.} 37. Rdb8 {[%emt 0:00:00] The position is equal.} Qd1+ {[%emt 0:00:57]} 38. Kb2 {[%emt 0:00:00]} Qd2+ {[%emt 0:00:20]} 39. Kb3 {[%emt 0:00:00]} Qd1+ {[%emt 0:00:53]} 40. Kc4 {[%emt 0:00:00]} Qd4+ {[%emt 0:00:23]} 41. Kb5 {[%emt 0:00:00]} Qd7+ {[%emt 0:00:59]} 42. Ka6 {[%emt 0:00:00]} Qc6+ {[%emt 0:00:31]} 43. R8b6 {[%emt 0:00:00]} Qc8+ {[%emt 0:00:20]} 44. Kb5 {[%emt 0:00:00] a6 would now be deadly.} Qd7+ {[%emt 0:00:16]} 45. Kc5 {[%emt 0:00:00] Rc4 is the strong threat.} Qc7+ {[%emt 0:01:06]} 46. Kd5 {[%emt 0:00:00] Hoping for a6.} Qd8+ {[%emt 0:01:30]} 47. Kc4 {[%emt 0:00:00] Threatens to win with a6.} Qd4+ {[%emt 0:00:14]} 48. Kb5 {[%emt 0:00:00]} Qd7+ {[%emt 0:00:01]} 49. Ka6 {[%emt 0:00:00]} Qc8+ {[%emt 0:00:18]} 50. Rb7 {[%emt 0:00:00]} Qc6+ {[%emt 0:00:26]} 51. R4b6 {[%emt 0:00:00]} Qxe4 {[%emt 0:01:56]} 52. Ka7 {[%emt 0:00:00] Active counter play!} Qd4 {[%emt 0:00:25]} 53. a6 {[%emt 0:00:00] Weighted Error Value: White=0.20 (precise) /Black=0.18 (very precise) .  Loses game:     	---       	Black=1      Missed win:     	White=1     	---        Mistake:       	White=2     	Black=4      Inaccurate:     	White=4     	Black=1      OK:         	White=8     	Black=25     Best:        	White=2     	Black=3      Strong:       	White=1     	Black=2} 1/2-1/2

[Event "1000GM Schev-G3 March 2024"]
[Site "Santa Clara"]
[Date "2024.03.10"]
[Round "3.5"]
[White "Suarez, Sebastian"]
[Black "Zuluaga Mancilla, Cesar"]
[Result "1-0"]
[ECO "B41"]
[WhiteElo "2113"]
[BlackElo "2217"]
[Annotator "RC"]
[PlyCount "81"]
[EventDate "2024.03.06"]
[EventType "schev"]
[EventCountry "USA"]
[SourceTitle "playchess.com"]
[Source "ChessBase"]
[SourceQuality "1"]
[TimeControl "5400+30"]

1. e4 {[%emt 0:05:06]} c5 {[%emt 0:03:53]} 2. Nf3 {[%emt 0:00:12]} a6 {[%emt 0:00:07]} 3. c4 {[%emt 0:00:15]} e6 {[%emt 0:00:50]} 4. Nc3 {[%emt 0:01:08]} Qc7 {[%emt 0:00:18]} 5. d4 {[%emt 0:01:43]} cxd4 {[%emt 0:00:02]} 6. Nxd4 {[%emt 0:00:11]} Nf6 {[%emt 0:00:06]} 7. a3 {[%emt 0:02:50]} Nxe4 {[%emt 0:01:34]} 8. Nxe4 {[%emt 0:03:26]} Qe5 {[%emt 0:00:01]} 9. Qe2 {[%emt 0:10:36]} Qxd4 {[%emt 0:00:12]} 10. g3 {[%emt 0:02:10]} Be7 {[%emt 0:02:42]} 11. Bg2 {[%emt 0:00:16]} Nc6 {[%emt 0:01:07]} 12. O-O {[%emt 0:01:10]} O-O {[%emt 0:05:32]} 13. Rd1 {[%emt 0:00:37]} Qe5 {[%emt 0:00:50]} 14. Bf4 {[%emt 0:01:24]} Qa5 {[%emt 0:04:03]} 15. b4 {[%emt 0:01:20]} Qd8 {[%emt 0:00:02]} 16. c5 {[%emt 0:16:38]} f5 {[%emt 0:11:55]} 17. Nd6 {[%emt 0:01:56]} Bxd6 {[%emt 0:03:09]} 18. Bxd6 {[%emt 0:01:19]} Rf7 {[%emt 0:02:41]} 19. Rac1 {[%emt 0:08:39]} Qf6 {[%emt 0:00:44]} 20. Rc4 {[%emt 0:04:06]} h6 {[%emt 0:03:13]} 21. a4 {[%emt 0:04:22]} Kh7 {[%emt 0:01:34]} 22. b5 {[%emt 0:04:51]} Nd8 {[%emt 0:04:19]} 23. Be5 {[%emt 0:00:59]} Qe7 {[%emt 0:00:18]} 24. Bd6 {[%emt 0:01:01]} Qf6 {[%emt 0:01:18]} 25. Be5 {[%emt 0:00:19]} Qe7 {[%emt 0:00:07]} 26. b6 {[%emt 0:00:11]} Nc6 {[%emt 0:03:56]} 27. Bd6 {[%emt 0:00:11]} Qf6 {[%emt 0:01:48]} 28. f4 {[%emt 0:05:53]} a5 {[%emt 0:01:23]} 29. h4 {[%emt 0:01:21]} g6 {[%emt 0:00:24]} 30. Qd2 {[%emt 0:05:11]} Kg8 {[%emt 0:00:51]} 31. Rc3 {[%emt 0:01:32]} Kh7 {[%emt 0:03:10]} 32. Rd3 {[%emt 0:00:53]} Nb4 {[%emt 0:00:18]} 33. Rb3 {[%emt 0:02:17]} Qd8 {[%emt 0:03:10]} 34. Qe3 {[%emt 0:01:41]} Qe8 {[%emt 0:00:44]} 35. Rb2 {[%emt 0:00:59]} Rg7 {[%emt 0:01:44]} 36. Rbd2 {[%emt 0:01:00]} Rf7 {[%emt 0:04:01]} 37. Kf2 {[%emt 0:00:16]} Rg7 {[%emt 0:01:26]} 38. Be5 {[%emt 0:01:18]} Rg8 {[%emt 0:03:41]} 39. Bxb7 {[%emt 0:01:09]} Rg7 {[%emt 0:32:47]} 40. Bg2 Rf7 41. Rd6 {[%emt 0:10:34]} 1-0

[Event "1000GM Schev-G3 March 2024"]
[Site "Santa Clara"]
[Date "2024.03.10"]
[Round "4.1"]
[White "Blandon Villa, Diego F"]
[Black "Chinni, Rishabh"]
[Result "0-1"]
[ECO "C54"]
[WhiteElo "2274"]
[BlackElo "2010"]
[Annotator "TA"]
[PlyCount "73"]
[EventDate "2024.03.06"]
[EventType "schev"]
[EventCountry "USA"]
[SourceTitle "playchess.com"]
[Source "ChessBase"]
[SourceQuality "1"]
[TimeControl "5400+30"]

{[%evp 12,73,31,-10,8,9,9,7,11,0,0,-29,0,2,14,8,14,12,34,35,38,22,43,0,0,-52,-54,-70,50,66,70,-43,-46,-146,-142,-287,-291,-301,-278,-301,-301,-316,-312,-327,-326,-312,-325,-333,-339,-407,-412,-418,-429,-437,-428,-402,-377,-382,0,-360,-275,-485,-447,-447]} 1. e4 {[%emt 0:05:37]} e5 {[%emt 0:00:03]} 2. Nf3 {[%emt 0:00:15]} Nc6 {[%emt 0:00:02]} 3. Bc4 {[%emt 0:01:04]} Bc5 {[%emt 0:00:04]} 4. c3 {[%emt 0:01:04]} Nf6 {[%emt 0:00:03]} 5. d3 {[%emt 0:01:26]} h6 {[%emt 0:02:45]} 6. O-O {[%emt 0:08:01]} d6 {[%emt 0:00:19]} 7. Be3 {[%emt 0:01:47]} Bb6 {[%emt 0:01:14]} 8. a4 {[%emt 0:01:08]} O-O {[%emt 0:01:33]} 9. Bxb6 {[%emt 0:08:46]} axb6 {[%emt 0:00:07] Die Stellung ist ausgeglichen.} 10. Qc2 {[%emt 0:00:10]} Ne7 {[%emt 0:01:12]} 11. d4 {[%emt 0:03:15]} Ng6 {[%emt 0:00:25]} (11... exd4 {scheint wilder zu sein.} 12. Nxd4 Nxe4 13. Qxe4 d5) 12. Nbd2 {[%emt 0:00:07]} Bd7 {[%emt 0:04:21]} 13. Rfe1 {[%emt 0:01:08]} Qe7 {[%emt 0:01:05]} 14. Bf1 {[%emt 0:00:22]} Ra7 {[%emt 0:04:01]} 15. b3 $1 {[%emt 0:05:24]} Rfa8 {[%emt 0:03:53][%cal Ob6b5]} 16. Rad1 {[%emt 0:02:55]} Qe8 {[%emt 0:03:10]} 17. Qd3 {[%emt 0:04:25]} Nf4 {[%emt 0:08:42]} 18. Qc4 {[%emt 0:00:53]} (18. Qc2 $11) 18... c5 $1 $15 {[%emt 0:02:36]} 19. dxe5 {[%emt 0:08:40]} dxe5 {[%emt 0:00:25]} (19... b5 $1 $15 20. axb5 Be6 (20... dxe5 $2 21. Qxc5 Ra5 22. Nc4 $18)) 20. g3 $14 {[%emt 0:00:15]} Nh3+ {[%emt 0:02:29]} 21. Kg2 {[%emt 0:03:06]} ({Weiss kommt nicht vorbei an} 21. Bxh3 $1 $14 Bxh3 22. Qe2) 21... Ng4 $36 {[%emt 0:00:41][%mdl 2048] Weiss steht unter Druck.} 22. Re2 {[%emt 0:00:51] [#] Ab hier gerät Weiß ins Schliddern.} ({Besser ist} 22. Nb1 $15) 22... Nhxf2 $1 $17 {[%emt 0:00:38] Schwarz steht aktiver.} 23. Rde1 {[%emt 0:04:05] [#]} (23. Rb1 $17) 23... b5 $1 $19 {[%emt 0:02:10]} (23... Be6 24. Qb5 Qxb5 25. axb5 $19) 24. Qd5 {[%emt 0:06:56]} Be6 {[%emt 0:02:51]} (24... bxa4 25. Rxf2 Be6 26. Qxc5 Nxf2 (26... axb3 27. Rfe2 $11) 27. Kxf2 axb3 (27... Bxb3 28. c4 $11) 28. Qxe5 $17) 25. Qxc5 {[%emt 0:04:50]} Nd3 {[%emt 0:00:05]} (25... bxa4 26. Rxf2 Nxf2 (26... axb3 27. Rfe2 $14) 27. Kxf2 $15) 26. Qxb5 {[%emt 0:00:09]} Qxb5 {[%emt 0:00:20]} ({Nicht} 26... Nxe1+ 27. Rxe1 Qc8 28. Bc4 $17) 27. axb5 {[%emt 0:00:39]} Nxe1+ {[%emt 0:00:03]} 28. Rxe1 {[%emt 0:00:13]} Ra2 {[%emt 0:03:04]} 29. Re2 {[%emt 0:05:28]} Rc2 {[%emt 0:05:13]} 30. c4 {[%emt 0:00:43]} Raa2 {[%emt 0:01:54]} 31. h3 {[%emt 0:01:14]} Nf6 {[%emt 0:00:53]} 32. Kf2 {[%emt 0:10:27]} Nd7 {[%emt 0:06:19]} 33. Ke3 {[%emt 0:04:46]} Rc3+ {[%emt 0:01:56]} 34. Kf2 {[%emt 0:00:05]} Rcc2 {[%emt 0:00:01]} 35. Ke3 {[%emt 0:00:16]} f6 {[%emt 0:00:24]} ({Keinesfalls} 35... Rc3+ 36. Kf2 $19) 36. b4 $2 {[%emt 0:05:46]} (36. Nb1) 36... Rc3+ {[%emt 0:01:55]} ({Und nicht} 36... Bxc4 37. Nxc4 Rc3+ 38. Kf2 $16) 37. Kf2 {[%emt 0:00:09] Gewichteter Fehlerwert: Weiß=0.38/Schwarz=0.28 (präzise) .  Fehler:       	Weiß=5     	Schwarz=1     Ungenau:       	Weiß=2     	Schwarz=1     OK:         	Weiß=6     	Schwarz=13    Bester:       	Weiß=3     	Schwarz=2     Stark:        	Weiß=1     	Schwarz=2} 0-1

[Event "1000GM Schev-G3 March 2024"]
[Site "Santa Clara"]
[Date "2024.03.10"]
[Round "4.2"]
[White "Gracia Alvarez, Gerardo Antonio"]
[Black "Penagalapati, Abhinav"]
[Result "1-0"]
[ECO "B51"]
[WhiteElo "2233"]
[BlackElo "2043"]
[Annotator "RC"]
[PlyCount "85"]
[EventDate "2024.03.06"]
[EventType "schev"]
[EventCountry "USA"]
[SourceTitle "playchess.com"]
[Source "ChessBase"]
[SourceQuality "1"]
[TimeControl "5400+30"]

1. e4 {[%emt 0:00:03]} c5 {[%emt 0:01:47]} 2. Nf3 {[%emt 0:00:06]} d6 {[%emt 0:00:06]} 3. Bb5+ {[%emt 0:00:05]} Nc6 {[%emt 0:00:29]} 4. O-O {[%emt 0:00:36]} Bd7 {[%emt 0:00:10]} 5. Re1 {[%emt 0:00:21]} Nf6 {[%emt 0:00:18]} 6. c3 {[%emt 0:00:24]} a6 {[%emt 0:00:05]} 7. Bf1 {[%emt 0:00:07]} Bg4 {[%emt 0:00:29]} 8. d4 {[%emt 0:00:24]} cxd4 {[%emt 0:00:15]} 9. cxd4 {[%emt 0:00:05]} e5 {[%emt 0:00:55]} 10. d5 {[%emt 0:00:43]} Nd4 {[%emt 0:00:54]} 11. Be3 {[%emt 0:00:07]} Nxf3+ {[%emt 0:00:37]} 12. gxf3 {[%emt 0:00:05]} Bd7 {[%emt 0:00:09]} 13. Nd2 {[%emt 0:00:12]} Be7 {[%emt 0:00:56]} 14. Nc4 {[%emt 0:00:06]} O-O {[%emt 0:02:41]} 15. Nb6 {[%emt 0:11:38]} Rb8 {[%emt 0:01:29]} 16. Rc1 {[%emt 0:02:33]} Nh5 {[%emt 0:23:05]} 17. Qc2 {[%emt 0:02:49]} f5 {[%emt 0:14:37]} 18. Qc7 {[%emt 0:03:46]} Be8 {[%emt 0:00:24]} 19. Qxd8 {[%emt 0:07:54]} Bxd8 {[%emt 0:00:13]} 20. Nc4 {[%emt 0:01:22]} Rf6 {[%emt 0:05:36]} 21. b4 {[%emt 0:06:51]} b5 {[%emt 0:11:52]} 22. Na5 {[%emt 0:00:15]} f4 {[%emt 0:00:06]} 23. Bd2 {[%emt 0:00:36]} Rg6+ {[%emt 0:00:23]} 24. Kh1 {[%emt 0:00:28]} Bb6 {[%emt 0:00:22]} 25. Re2 {[%emt 0:02:17]} Bd7 {[%emt 0:00:22]} 26. Nc6 {[%emt 0:01:28]} Re8 {[%emt 0:00:10]} 27. Be1 {[%emt 0:01:25]} Nf6 {[%emt 0:15:08]} 28. a4 {[%emt 0:01:51]} Rh6 {[%emt 0:00:53]} 29. a5 {[%emt 0:00:47]} Bc7 {[%emt 0:20:29]} 30. Rec2 {[%emt 0:02:49]} Kf7 {[%emt 0:00:30]} 31. Na7 {[%emt 0:00:49]} Bb8 {[%emt 0:00:00]} 32. Nc8 {[%emt 0:00:23]} g5 {[%emt 0:00:00]} 33. Nb6 {[%emt 0:00:06]} Rg8 {[%emt 0:00:00]} 34. Nxd7 {[%emt 0:00:30]} Nxd7 {[%emt 0:00:00]} 35. Rc8 {[%emt 0:03:16]} Rg7 {[%emt 0:00:00]} 36. Rd8 {[%emt 0:03:31]} Ke7 {[%emt 0:00:00]} 37. Rcc8 {[%emt 0:00:22]} Ba7 {[%emt 0:00:00]} 38. Rg8 {[%emt 0:03:27]} Rxg8 {[%emt 0:01:12]} 39. Rxg8 {[%emt 0:00:05]} Bb8 {[%emt 0:00:46]} 40. Rc8 {[%emt 0:01:32]} Ba7 {[%emt 0:01:39]} 41. Ra8 {[%emt 0:00:31]} Bd4 {[%emt 0:00:15]} 42. Rxa6 {[%emt 0:00:21]} Rf6 {[%emt 0:00:05]} 43. Ra8 {[%emt 0:01:12]} 1-0

[Event "1000GM Schev-G3 March 2024"]
[Site "Santa Clara"]
[Date "2024.03.10"]
[Round "4.3"]
[White "Champsi, Imran"]
[Black "Heimann, Alexander"]
[Result "1/2-1/2"]
[ECO "E32"]
[WhiteElo "2057"]
[BlackElo "2290"]
[Annotator "TA"]
[PlyCount "73"]
[EventDate "2024.03.06"]
[EventType "schev"]
[EventCountry "USA"]
[SourceTitle "playchess.com"]
[Source "ChessBase"]
[SourceQuality "1"]
[TimeControl "5400+30"]

{[%evp 13,73,0,0,0,0,0,44,42,42,33,37,41,53,42,37,12,16,23,22,14,20,0,9,-20,36,34,60,29,63,39,68,69,87,93,105,91,94,71,71,78,78,39,31,30,35,27,21,5,20,0,0,0,19,23,18,2,4,0,0,0,8,8]} 1. d4 {[%emt 0:00:35]} Nf6 {[%emt 0:02:23]} 2. c4 {[%emt 0:00:03]} e6 {[%emt 0:00:05]} 3. Nc3 {[%emt 0:00:06]} Bb4 {[%emt 0:00:07]} 4. Qc2 {[%emt 0:01:10]} O-O {[%emt 0:00:08]} 5. e4 {[%emt 0:00:44][%cal Be2e4,Be4e5][%mdl 32]} d5 {[%emt 0:00:10]} 6. e5 {[%emt 0:00:33]} Ne4 {[%emt 0:00:06]} 7. Bd3 {[%emt 0:00:37]} c5 {[%emt 0:00:24]} 8. Nge2 {[%emt 0:01:09]} cxd4 {[%emt 0:04:08]} 9. Nxd4 {[%emt 0:00:02]} f5 {[%emt 0:00:34] [#] Zielt auf ...Nxc3 ab.} 10. exf6 {[%emt 0:07:41] Weiß steht etwas besser.} Qxf6 {[%emt 0:00:12]} 11. Bxe4 {[%emt 0:11:05]} Bxc3+ {[%emt 0:01:09]} 12. bxc3 {[%emt 0:00:43]} dxe4 {[%emt 0:00:03]} 13. O-O {[%emt 0:00:58][%cal Oc1a3]} e5 {[%emt 0:00:10]} 14. Ne2 {[%emt 0:05:59][%cal Oc1a3]} (14. Nb5 {ist vielschichtiger.} Qg6 15. Ba3 Rd8 16. Rad1) 14... Bf5 {[%emt 0:01:33][%cal Oe4e3]} 15. Ng3 {[%emt 0:02:49][%cal Oc2b3]} Bg6 {[%emt 0:00:30][%cal Oe4e3]} 16. Be3 {[%emt 0:04:24][%cal Of1d1]} Qc6 {[%emt 0:00:33]} 17. c5 {[%emt 0:05:06]} Nd7 {[%emt 0:00:22]} 18. Rab1 {[%emt 0:12:16]} Rab8 {[%emt 0:01:12]} (18... Nxc5 $11 19. h4 (19. Bxc5 Qxc5 20. Qb3+ Kh8 $15) 19... b6) 19. Qb3+ $14 {[%emt 0:06:06]} Kh8 {[%emt 0:00:40]} 20. Qb5 {[%emt 0:02:38]} Qe6 {[%emt 0:03:14]} 21. Qa4 {[%emt 0:04:04][%csl LRa7,LRe4]} a6 {[%emt 0:02:48]} 22. Nxe4 {[%emt 0:05:19]} Nf6 {[%emt 0:01:04]} 23. Rb6 {[%emt 0:06:21]} Qd7 {[%emt 0:03:12] Schwarz hat schwache schwarze Felder} 24. Qxd7 {[%emt 0:03:35]} Nxd7 {[%emt 0:00:02]} 25. Rd6 {[%emt 0:00:02] Weiß steht aktiver.} Bxe4 {[%emt 0:00:13]} 26. Rxd7 {[%emt 0:00:41]} Rbd8 {[%emt 0:01:21]} 27. Rfd1 {[%emt 0:01:12]} Rxd7 {[%emt 0:00:09]} 28. Rxd7 {[%emt 0:00:02][%mdl 4096] Endspiel. KRB-KRB} Bc6 {[%emt 0:00:02]} 29. Re7 {[%emt 0:00:56]} Re8 {[%emt 0:00:02]} 30. Rc7 {[%emt 0:02:25]} Kg8 {[%emt 0:00:11]} 31. f3 {[%emt 0:00:41]} Rd8 {[%emt 0:00:15]} 32. Kf2 {[%emt 0:01:09]} Rd7 {[%emt 0:00:09]} 33. Rxd7 {[%emt 0:01:32]} Bxd7 {[%emt 0:00:01]} 34. Bd2 {[%emt 0:01:33] Die Stellung ist ausgeglichen.} Kf7 {[%emt 0:00:05]} 35. Ke3 {[%emt 0:00:13]} Ke6 {[%emt 0:00:01]} 36. c4 {[%emt 0:00:32]} Bc6 {[%emt 0:00:02]} 37. Bc3 {[%emt 0:01:14] Gewichteter Fehlerwert: Weiß=0.12 (sehr präzise) /Schwarz=0.12 (sehr präzise) .  Fehler:       	---       	Schwarz=1     Ungenau:       	Weiß=3     	Schwarz=4     OK:         	Weiß=7     	Schwarz=13    Bester:       	Weiß=3     	Schwarz=1} 1/2-1/2